bitfinex/quotes_SOLUSD_20240624
["timestamp","ask_amount","ask_price","bid_price","bid_amount"]
[1719196027374,0.8188803,127.82,127.81,8.1641]
[1719196034033,0.8188803,127.82,127.81,100.0]
[1719196034242,15.9089,127.92,127.85,100.0]
[1719196034527,15.9089,127.92,127.88,7.8194]
[1719196034697,15.9089,127.92,127.89,7.8191]
[1719196034891,15.9089,127.92,127.88,7.8196]
[1719196036798,15.9089,127.92,127.87,0.34]
[1719196037012,15.9089,127.92,127.81,122.6088]
[1719196037223,1.9127,127.91,127.81,6.3952]
[1719196037519,1.9127,127.91,127.83,118.56]
[1719196037717,1.9127,127.91,127.86,7.8208]
[1719196038397,1.9127,127.91,127.83,18.56]
[1719196038599,1.9127,127.91,127.84,20.17]
[1719196038808,1.9127,127.91,127.84,27.9919]
[1719196039114,1.9127,127.91,127.84,20.17]
[1719196039418,1.9127,127.91,127.85,0.17]
[1719196039592,1.9127,127.91,127.86,7.821]
[1719196040334,1.9127,127.91,127.85,7.9914]
[1719196040497,1.9127,127.91,127.86,0.17]
[1719196042618,15.9089,127.92,127.87,7.8201]
[1719196044604,15.9089,127.92,127.86,7.9908]
[1719196044921,15.9089,127.92,127.86,0.17]
[1719196045512,15.9089,127.92,127.86,1.67411522]
[1719196046020,1.9127,127.91,127.81,7.8235]
[1719196046221,1.9127,127.91,127.82,118.56]
[1719196046427,1.9127,127.91,127.85,7.8215]
[1719196048226,1.9127,127.91,127.84,7.8222]
[1719196049109,1.9127,127.91,127.83,0.34]
[1719196049110,1.9127,127.91,127.85,7.8216]
[1719196049518,1.9127,127.91,127.86,7.8205]
[1719196049716,1.9127,127.91,127.85,7.8214]
[1719196051709,1.9127,127.91,127.86,7.8209]
[1719196052828,1.9127,127.91,127.85,7.8215]
[1719196053131,1.9127,127.91,127.86,7.8208]
[1719196054234,1.9127,127.91,127.85,7.8213]
[1719196054621,1.9127,127.91,127.86,6.18]
[1719196054822,8.0927,127.91,127.86,6.18]
[1719196055333,1.9127,127.91,127.86,6.18]
[1719196055521,8.0927,127.91,127.86,6.18]
[1719196056443,1.9127,127.91,127.86,6.18]
[1719196056729,8.0927,127.91,127.86,6.18]
[1719196057439,8.0927,127.91,127.86,14.0009]
[1719196058741,1.9127,127.91,127.86,14.0009]
[1719196058926,1.9127,127.91,127.87,6.18]
[1719196059843,1.9127,127.91,127.86,14.0009]
[1719196059844,8.0927,127.91,127.86,14.0009]
[1719196061875,15.9089,127.92,127.87,14.0003]
[1719196062339,15.9089,127.92,127.88,7.8197]
[1719196062651,15.9089,127.92,127.87,14.0002]
[1719196066839,6.30894883,127.94,127.87,14.0002]
[1719196067043,0.8188803,127.95,127.94,7.8161]
[1719196067261,22.05963173,128.07,127.95,100.0]
[1719196067465,6.18,128.05,128.0,6.18]
[1719196067759,6.18,128.05,127.96,20.34]
[1719196067760,6.18,128.05,127.99,7.813]
[1719196067929,6.18,128.05,127.96,39.8771]
[1719196067930,6.18,128.05,128.0,7.8124]
[1719196068253,6.18,128.06,128.0,13.9924]
[1719196068430,6.18,128.06,128.01,7.8117]
[1719196068629,15.7987,128.07,128.01,7.8117]
[1719196070828,15.7987,128.07,128.02,7.8108]
[1719196071733,15.7987,128.07,128.01,7.8116]
[1719196071922,0.8188803,128.08,128.03,7.8103]
[1719196072124,0.8188803,128.08,128.04,7.98]
[1719196072329,0.8188803,128.08,128.05,0.17]
[1719196072537,0.8188803,128.08,128.03,18.48]
[1719196072845,0.8188803,128.08,128.07,7.8082]
[1719196073035,0.8188803,128.08,128.06,7.8085]
[1719196073343,0.8188803,128.08,128.07,7.9782]
[1719196073850,0.8188803,128.08,128.07,8.1482]
[1719196076361,0.8188803,128.08,128.07,0.34]
[1719196076881,0.8188803,128.08,128.05,7.8092]
[1719196077077,0.8188803,128.08,128.04,27.9798]
[1719196077361,0.8188803,128.08,128.05,0.17]
[1719196078019,0.8188803,128.08,128.05,7.9794]
[1719196078848,0.8188803,128.08,128.06,7.8087]
[1719196079349,0.8188803,128.08,128.05,7.9791]
[1719196079554,0.8188803,128.08,128.06,7.8088]
[1719196080240,0.8188803,128.08,128.07,7.8082]
[1719196080773,0.8188803,128.08,128.06,7.8086]
[1719196081466,0.8188803,128.08,128.07,7.8082]
[1719196081957,0.8188803,128.08,128.06,7.8086]
[1719196084041,0.8188803,128.08,128.05,7.9791]
[1719196084569,0.8188803,128.08,128.05,0.17]
[1719196084739,0.8188803,128.08,128.05,8.149]
[1719196084940,0.8188803,128.08,128.06,7.8088]
[1719196086547,0.8188803,128.08,128.07,7.8082]
[1719196087469,0.8188803,128.08,128.05,0.34]
[1719196087470,0.8188803,128.08,128.05,19.8621]
[1719196087847,0.8188803,128.08,128.05,38.3421]
[1719196088047,0.8188803,128.08,128.07,7.8082]
[1719196088250,0.8188803,128.08,128.07,7.9782]
[1719196090877,0.8188803,128.08,128.07,128.1482]
[1719196091784,8.03e-05,128.08,128.07,228.1482]
[1719196092576,8.03e-05,128.08,128.07,275.2382]
[1719196094675,16.3965,128.18,128.09,200.0]
[1719196094872,16.3965,128.18,128.13,7.8042]
[1719196096148,16.3965,128.18,128.08,18.48]
[1719196096484,16.3965,128.18,128.09,27.8068]
[1719196096682,16.3965,128.18,128.1,7.8063]
[1719196096886,16.3965,128.18,128.09,27.8067]
[1719196098098,16.3965,128.18,128.1,7.8062]
[1719196098458,15.6878,128.16,128.05,19.5233]
[1719196098681,0.34,128.15,128.06,27.8085]
[1719196098883,0.34,128.15,128.06,7.8085]
[1719196099176,15.6878,128.13,128.04,7.8096]
[1719196099378,15.6878,128.13,128.05,7.8092]
[1719196099570,15.6878,128.13,128.02,39.7901]
[1719196099571,15.6878,128.13,128.06,7.8087]
[1719196099753,22.0485,128.18,128.11,7.8053]
[1719196099953,22.0485,128.18,128.15,7.8031]
[1719196100491,15.6878,128.18,128.15,7.8031]
[1719196100666,15.6878,128.18,128.16,7.8025]
[1719196102157,22.4005,128.21,128.16,7.8025]
[1719196102685,22.4005,128.21,128.15,7.8031]
[1719196104063,22.4005,128.21,128.16,7.8025]
[1719196104269,22.4005,128.21,128.16,7.9725]
[1719196104462,22.4005,128.21,128.15,7.8031]
[1719196104664,22.4005,128.21,128.16,0.34]
[1719196105393,22.4005,128.21,128.15,7.8031]
[1719196105563,22.4005,128.21,128.14,7.8036]
[1719196105766,22.4005,128.21,128.13,8.1442]
[1719196107369,15.0614,128.19,128.1,7.806]
[1719196108675,15.0614,128.19,128.06,425.47]
[1719196108982,15.0614,128.19,128.13,7.8045]
[1719196109497,15.0614,128.19,128.13,7.8044]
[1719196110161,15.0614,128.19,128.12,7.8048]
[1719196110367,15.0614,128.19,128.09,19.5173]
[1719196110673,15.0614,128.19,128.1,20.34]
[1719196111267,15.0614,128.19,128.1,139.8545]
[1719196111465,15.0614,128.19,128.13,7.8042]
[1719196111686,15.0614,128.19,128.12,8.1449]
[1719196111874,15.0614,128.19,128.13,0.17]
[1719196113969,15.0614,128.19,128.1,27.8061]
[1719196114170,15.0614,128.19,128.11,0.34]
[1719196114780,22.8067,128.13,128.02,7.8107]
[1719196114993,22.8067,128.13,128.01,16.0193]
[1719196115275,22.8067,128.13,128.01,19.5294]
[1719196115476,22.8067,128.13,127.99,18.48]
[1719196115477,20.0,128.12,128.03,100.0]
[1719196115700,20.0,128.12,128.06,7.8083]
[1719196115988,20.0,128.12,128.05,7.8092]
[1719196116191,22.5986,128.11,128.02,18.48]
[1719196116486,18.48,128.07,127.98,7.8135]
[1719196116704,6.2541,128.06,127.98,7.8135]
[1719196116867,20.0,128.05,127.98,7.8135]
[1719196117063,20.0,128.05,127.98,7.8132]
[1719196117299,20.0,128.05,127.97,7.8139]
[1719196117882,20.0,128.05,127.98,7.8136]
[1719196118084,20.0,128.05,127.97,7.8138]
[1719196118293,20.0,128.05,127.94,166.6289]
[1719196118473,20.0,128.05,127.94,100.0]
[1719196118678,20.0,128.05,127.93,22.7264]
[1719196118884,16.3445,128.04,127.95,7.8153]
[1719196119077,16.3445,128.04,127.95,7.8151]
[1719196119275,16.3445,128.04,127.94,100.0]
[1719196119276,20.0,128.03,127.94,100.0]
[1719196119472,20.0,128.03,127.96,7.8144]
[1719196119676,16.3445,128.04,127.96,100.0]
[1719196119876,16.3445,128.04,127.99,7.8125]
[1719196120281,16.3445,128.04,127.97,20.0]
[1719196120282,6.2541,128.06,128.0,7.8119]
[1719196120571,6.2541,128.06,127.98,100.0]
[1719196120572,6.2541,128.06,127.97,20.0]
[1719196120890,6.2541,128.06,128.0,7.8122]
[1719196121096,6.2541,128.06,127.99,7.9829]
[1719196121301,6.2541,128.06,128.0,7.9823]
[1719196121594,6.2541,128.06,128.01,0.17]
[1719196121788,6.2541,128.06,127.98,7.8136]
[1719196122007,6.2541,128.06,127.93,60.7468]
[1719196122171,20.0,128.05,127.96,7.8145]
[1719196122494,20.0,128.05,127.97,0.17]
[1719196123198,20.0,128.05,127.97,0.34]
[1719196123695,20.0,128.05,127.94,20.0]
[1719196123900,16.3445,128.03,127.94,20.0]
[1719196124190,16.3445,128.03,127.91,279.4447]
[1719196124518,20.17,128.02,127.93,7.8164]
[1719196124793,20.17,128.02,127.94,7.816]
[1719196125982,20.0,128.02,127.91,19.5447]
[1719196126384,20.0,128.02,127.92,20.0]
[1719196126599,20.0,128.02,127.93,7.9865]
[1719196126902,6.3895,128.01,127.93,7.9867]
[1719196127277,20.0,128.0,127.93,7.9867]
[1719196127474,20.0,128.0,127.93,0.17]
[1719196128883,20.0,128.0,127.93,7.9866]
[1719196131586,20.0,128.0,127.94,7.816]
[1719196131786,20.0,128.0,127.93,0.17]
[1719196132088,20.0,128.0,127.96,7.8148]
[1719196132707,20.0,128.0,127.95,7.8153]
[1719196133392,20.0,128.0,127.96,7.8149]
[1719196134200,20.0,128.0,127.96,7.8146]
[1719196134778,20.0,128.0,127.95,7.9852]
[1719196136019,20.0,128.0,127.92,27.8172]
[1719196137409,20.0,128.0,127.93,7.9867]
[1719196137612,20.0,128.0,127.94,7.8161]
[1719196138792,20.0,128.0,127.93,7.9864]
[1719196140485,15.4918,127.99,127.91,7.9874]
[1719196140687,15.4918,127.99,127.92,0.17]
[1719196140883,20.0,127.98,127.92,0.17]
[1719196141389,20.0,127.98,127.92,7.9873]
[1719196141812,20.0,127.98,127.93,7.8167]
[1719196142509,20.0,127.98,127.92,7.9871]
[1719196142894,20.0,127.98,127.93,7.8167]
[1719196143092,6.3895,128.01,127.96,7.8145]
[1719196143296,6.3895,128.01,127.94,0.34]
[1719196143495,6.3895,128.01,127.95,7.8151]
[1719196143706,6.3895,128.01,127.96,0.17]
[1719196143994,6.3895,128.01,127.95,7.8151]
[1719196144194,6.3895,128.01,127.93,7.8164]
[1719196144402,20.0,128.0,127.92,0.17]
[1719196144808,20.0,128.0,127.92,7.9872]
[1719196145017,20.0,128.0,127.92,0.17]
[1719196145203,20.0,128.0,127.91,20.17]
[1719196145408,20.0,128.0,127.94,7.8161]
[1719196147492,20.0,128.0,127.91,20.17]
[1719196147697,20.0,128.0,127.91,27.9879]
[1719196149318,6.1953,127.97,127.89,7.8188]
[1719196149712,20.0,127.96,127.89,7.8188]
[1719196150609,20.0,127.96,127.9,0.17]
[1719196151010,20.0,127.96,127.9,7.9885]
[1719196154018,20.0,127.96,127.91,7.8179]
[1719196155405,20.0,127.96,127.9,7.9883]
[1719196157928,6.1953,127.97,127.9,100.17]
[1719196158094,6.1953,127.97,127.94,7.8157]
[1719196159504,6.1953,127.97,127.93,7.8164]
[1719196162316,6.1953,127.97,127.92,0.17]
[1719196163015,6.1953,127.97,127.87,173.1102]
[1719196163221,6.1953,127.97,127.88,20.0]
[1719196163422,20.0,127.96,127.88,39.5485]
[1719196164130,20.0,127.96,127.9,7.8182]
[1719196164309,20.0,127.96,127.91,7.8179]
[1719196164505,20.0,127.96,127.9,7.8183]
[1719196166213,20.0,127.96,127.86,33.8634]
[1719196166416,20.0,127.96,127.88,7.8194]
[1719196167103,20.0,127.96,127.87,27.8201]
[1719196169017,20.0,127.96,127.88,0.83752387]
[1719196169727,20.0,127.96,127.88,8.65722387]
[1719196171619,20.0,127.96,127.88,7.8197]
[1719196171817,20.0,127.96,127.87,27.8201]
[1719196172738,6.5595,127.94,127.83,100.0]
[1719196173048,6.5595,127.94,127.82,279.4587]
[1719196173049,20.0,127.93,127.85,7.8215]
[1719196173918,20.0,127.93,127.85,7.8216]
[1719196174459,16.2076,127.92,127.85,7.8216]
[1719196174939,20.0,127.91,127.86,7.8209]
[1719196175333,20.0,127.91,127.87,7.8203]
[1719196176022,20.0,127.91,127.86,7.8208]
[1719196176648,20.0,127.91,127.85,7.9913]
[1719196178116,20.0,127.91,127.86,7.821]
[1719196183551,20.0,127.91,127.85,7.9914]
[1719196184940,20.0,127.91,127.86,7.8209]
[1719196185434,20.0,127.91,127.85,7.9913]
[1719196186246,20.0,127.91,127.81,100.0]
[1719196186440,15.9082,127.89,127.79,147.09]
[1719196187059,20.0,127.88,127.82,7.8231]
[1719196187441,20.0,127.88,127.83,7.8227]
[1719196187639,20.0,127.88,127.82,7.8232]
[1719196187832,20.0,127.88,127.79,19.5621]
[1719196188037,20.0,127.88,127.81,7.8237]
[1719196190347,20.0,127.88,127.8,7.9945]
[1719196191458,20.0,127.88,127.8,0.17]
[1719196191648,20.0,127.88,127.8,7.9943]
[1719196193364,20.0,127.88,127.8,0.17]
[1719196193551,20.0,127.88,127.8,7.9942]
[1719196193756,20.0,127.88,127.81,7.824]
[1719196194148,20.0,127.88,127.8,0.17]
[1719196194549,20.0,127.88,127.79,0.34]
[1719196195246,20.0,127.88,127.81,7.824]
[1719196197453,20.0,127.88,127.83,7.8224]
[1719196198455,20.0,127.88,127.82,7.8233]
[1719196200549,20.0,127.88,127.82,19.5579]
[1719196200752,20.0,127.88,127.84,7.8219]
[1719196200961,20.0,127.88,127.83,0.17]
[1719196201658,20.0,127.88,127.84,7.8221]
[1719196201980,20.0,127.88,127.83,7.9922]
[1719196202677,20.0,127.88,127.83,19.7269]
[1719196202876,15.9082,127.89,127.87,7.8202]
[1719196203063,15.9082,127.89,127.85,7.8213]
[1719196203751,15.9082,127.89,127.84,7.8219]
[1719196203975,15.9082,127.89,127.85,0.17]
[1719196205066,15.9082,127.89,127.85,7.9915]
[1719196206258,15.9082,127.89,127.85,0.17]
[1719196207559,15.0746,127.92,127.85,0.17]
[1719196207758,15.0746,127.92,127.88,7.8194]
[1719196208256,6.4069,127.94,127.89,7.8188]
[1719196208451,6.4069,127.94,127.9,0.17]
[1719196208665,15.0746,127.96,127.91,7.8174]
[1719196208885,15.0746,127.96,127.9,0.34]
[1719196209078,15.0746,127.96,127.91,7.8178]
[1719196209268,15.0746,127.96,127.91,7.8177]
[1719196209471,15.0746,127.96,127.92,0.34]
[1719196210861,6.4069,127.98,127.93,7.8167]
[1719196211261,6.4069,127.98,127.94,7.8161]
[1719196211782,6.4069,127.98,127.93,7.8165]
[1719196211998,6.4069,127.98,127.94,0.17]
[1719196212383,6.4069,127.98,127.92,0.17]
[1719196212771,6.4069,127.98,127.91,20.34]
[1719196213174,6.4069,127.98,127.91,28.1578]
[1719196213976,6.4069,127.98,127.91,20.34]
[1719196214285,16.2471,127.99,127.96,7.8149]
[1719196215386,6.1899,128.01,127.97,7.9841]
[1719196215577,6.1899,128.01,127.92,81.8131]
[1719196215578,6.1899,128.01,127.96,0.17]
[1719196215775,6.1899,128.01,127.93,20.0]
[1719196215976,6.1899,128.01,127.95,7.8154]
[1719196216189,6.1899,128.01,127.96,0.17]
[1719196216579,6.1899,128.01,127.95,20.0]
[1719196216784,6.1899,128.01,127.95,20.17]
[1719196216969,6.1899,128.01,127.95,27.9855]
[1719196219768,6.1899,128.01,127.96,7.8149]
[1719196221281,16.3445,128.02,127.98,7.8134]
[1719196221781,16.3445,128.02,127.99,7.8129]
[1719196222291,16.3445,128.02,127.98,7.8134]
[1719196222787,16.3445,128.02,127.97,8.154]
[1719196222989,16.3445,128.02,127.95,20.0]
[1719196223194,16.3445,128.02,127.97,7.8139]
[1719196223397,16.3445,128.02,127.96,0.17]
[1719196223696,16.3445,128.02,127.92,7.8172]
[1719196223998,20.0,128.01,127.9,138.0662]
[1719196224505,20.0,128.01,127.87,259.9]
[1719196224506,15.397,127.99,127.87,259.9]
[1719196224671,15.397,127.99,127.92,7.8169]
[1719196224873,20.0,127.98,127.88,119.5492]
[1719196225085,20.0,127.98,127.91,7.8176]
[1719196225498,20.0,127.98,127.92,7.8169]
[1719196225679,20.0,127.98,127.91,39.0889]
[1719196225886,15.397,127.99,127.95,7.8152]
[1719196227472,15.6261,128.02,127.95,7.8152]
[1719196227782,15.6261,128.02,127.96,0.17]
[1719196227980,20.0,128.01,127.96,0.17]
[1719196228878,20.0,128.01,127.95,0.17]
[1719196233500,20.0,128.01,127.95,7.9853]
[1719196233703,15.6261,128.02,127.96,0.17]
[1719196233905,15.6261,128.02,127.96,20.17]
[1719196234583,15.6261,128.02,127.96,27.9848]
[1719196236814,15.6261,128.02,127.92,7.817]
[1719196237104,20.0,128.01,127.91,7.8176]
[1719196237284,6.5135,127.99,127.91,7.8176]
[1719196237690,20.0,127.98,127.91,7.8176]
[1719196237890,20.0,127.98,127.88,16.1204]
[1719196237891,15.565,127.97,127.88,16.1204]
[1719196238091,15.565,127.97,127.89,7.8188]
[1719196238403,20.0,127.96,127.88,16.1204]
[1719196238606,20.0,127.96,127.9,7.8185]
[1719196239114,20.0,127.96,127.91,7.8178]
[1719196239412,20.0,127.96,127.92,7.8172]
[1719196239627,15.565,127.97,127.93,7.8163]
[1719196239911,15.565,127.97,127.94,7.816]
[1719196240113,15.565,127.97,127.93,7.8164]
[1719196240505,15.565,127.97,127.92,7.9871]
[1719196240687,15.565,127.97,127.93,0.17]
[1719196241194,15.565,127.97,127.92,0.34]
[1719196241389,15.565,127.97,127.92,8.1572]
[1719196242035,15.565,127.97,127.93,7.8167]
[1719196243013,15.565,127.97,127.92,8.1572]
[1719196243211,15.565,127.97,127.92,0.34]
[1719196243911,15.565,127.97,127.9,7.8184]
[1719196244114,15.565,127.97,127.91,0.17]
[1719196245214,15.565,127.97,127.91,7.9879]
[1719196245514,15.565,127.97,127.92,7.8172]
[1719196247108,15.565,127.97,127.93,7.8166]
[1719196247309,6.5135,127.99,127.94,0.34]
[1719196247498,6.5135,127.99,127.94,7.8158]
[1719196247700,6.5135,127.99,127.95,7.8153]
[1719196248106,15.4442,128.01,127.96,7.8148]
[1719196248520,20.0,128.0,127.96,7.8148]
[1719196248706,15.4442,128.01,127.96,7.8148]
[1719196250019,15.4442,128.01,127.95,7.9853]
[1719196251825,15.4442,128.01,127.95,0.17]
[1719196252019,15.4442,128.01,127.93,0.17]
[1719196252225,15.4442,128.01,127.95,7.8151]
[1719196252929,15.4442,128.01,127.96,7.9846]
[1719196253225,15.4442,128.01,127.97,7.8141]
[1719196254018,15.4442,128.01,127.96,7.9846]
[1719196254917,15.4442,128.01,127.91,6.6638]
[1719196255130,15.4442,128.01,127.9,18.52]
[1719196255437,26.5563,128.0,127.91,7.8176]
[1719196256242,26.5563,128.0,127.92,7.8172]
[1719196256930,26.5563,128.0,127.93,7.8166]
[1719196257910,26.5563,128.0,127.92,7.8171]
[1719196258416,16.3445,127.99,127.88,16.1204]
[1719196258614,16.3445,127.99,127.9,7.8182]
[1719196258817,20.0,127.98,127.9,7.8182]
[1719196259637,20.0,127.98,127.91,0.17]
[1719196260531,20.0,127.98,127.91,7.8179]
[1719196260930,20.0,127.98,127.9,7.8183]
[1719196261238,20.0,127.98,127.91,7.8177]
[1719196261440,20.0,127.98,127.92,7.8172]
[1719196261920,20.0,127.98,127.9,7.8183]
[1719196262236,20.0,127.98,127.89,7.9888]
[1719196263219,20.0,127.98,127.9,7.8185]
[1719196264346,20.0,127.98,127.94,7.8159]
[1719196265233,20.0,127.98,127.91,0.34]
[1719196265234,16.3445,127.99,127.93,100.0]
[1719196265426,21.8589,128.05,127.97,7.8143]
[1719196265634,21.8589,128.05,127.94,20.34]
[1719196265943,20.0,128.04,127.95,7.8153]
[1719196266159,20.0,128.04,127.96,0.17]
[1719196266319,20.0,128.04,127.96,7.9846]
[1719196266522,20.0,128.04,127.96,0.17]
[1719196266823,20.0,128.04,127.95,7.9853]
[1719196267023,22.5573,128.03,127.91,24.6364]
[1719196267255,22.5573,128.03,127.93,7.8163]
[1719196267460,0.34,128.02,127.93,7.8163]
[1719196267816,22.5573,128.03,127.94,7.8158]
[1719196268023,22.5573,128.03,127.93,7.8166]
[1719196268374,20.17,128.02,127.92,7.8171]
[1719196268671,20.17,128.02,127.93,0.17]
[1719196268969,20.17,128.02,127.93,7.9866]
[1719196269347,20.17,128.02,127.93,0.17]
[1719196270364,6.4477,128.0,127.9,7.8183]
[1719196270569,0.17,127.99,127.9,7.8183]
[1719196271437,20.17,127.99,127.9,7.8183]
[1719196271639,20.17,127.99,127.91,0.17]
[1719196272872,20.17,127.99,127.86,420.8346]
[1719196272873,15.1936,127.98,127.86,420.8346]
[1719196273036,6.7576,127.97,127.87,7.8199]
[1719196273475,20.0,127.96,127.88,7.8197]
[1719196275886,20.0,127.96,127.89,0.17]
[1719196276093,20.0,127.96,127.9,7.8184]
[1719196276268,20.0,127.96,127.89,7.9886]
[1719196276588,20.0,127.96,127.9,7.8183]
[1719196276792,20.0,127.96,127.89,7.9889]
[1719196276979,20.0,127.96,127.9,7.8186]
[1719196277493,20.0,127.96,127.89,8.1589]
[1719196278903,20.0,127.96,127.9,7.8185]
[1719196280167,20.0,127.96,127.89,8.1589]
[1719196280370,20.0,127.96,127.87,7.82]
[1719196281297,20.0,127.96,127.86,34.2346]
[1719196281298,20.0,127.96,127.88,7.8198]
[1719196284396,15.3499,127.95,127.87,0.34]
[1719196284571,15.3499,127.95,127.87,0.17]
[1719196284771,20.0,127.94,127.86,7.821]
[1719196286698,20.0,127.94,127.87,7.8203]
[1719196287202,20.0,127.94,127.86,7.8207]
[1719196289107,20.0,127.94,127.87,7.8203]
[1719196289303,20.0,127.94,127.86,7.8207]
[1719196289602,20.0,127.94,127.85,0.34]
[1719196289800,6.1906,127.93,127.85,7.8212]
[1719196290002,15.3499,127.92,127.84,8.162]
[1719196290313,20.0,127.91,127.84,8.162]
[1719196291175,20.0,127.91,127.85,7.8214]
[1719196294982,20.0,127.91,127.85,7.9214]
[1719196297068,20.0,127.91,127.86,7.821]
[1719196297374,20.0,127.91,127.85,0.1]
[1719196297575,15.3499,127.92,127.88,7.8194]
[1719196298000,22.4571,127.97,127.89,0.34]
[1719196298192,22.4571,127.97,127.9,7.8181]
[1719196298395,20.0,127.96,127.87,0.17]
[1719196298603,20.0,127.96,127.87,0.34]
[1719196298787,20.0,127.96,127.87,7.8203]
[1719196300786,20.0,127.96,127.86,20.34]
[1719196301403,20.0,127.96,127.87,100.0]
[1719196301713,22.4571,127.97,127.91,19.5449]
[1719196301890,22.4571,127.97,127.92,0.34]
[1719196302091,22.4571,127.97,127.93,7.8167]
[1719196302816,6.327,128.01,127.94,7.986]
[1719196303023,6.327,128.01,127.95,0.17]
[1719196303024,16.1655,128.0,127.95,0.17]
[1719196303199,16.1655,128.0,127.97,7.8138]
[1719196303398,16.1655,128.04,127.95,0.17]
[1719196303606,22.4925,128.04,127.98,7.8136]
[1719196304201,22.4925,128.04,127.99,0.17]
[1719196304520,22.4925,128.04,127.97,0.17]
[1719196304687,22.4925,128.04,127.97,0.34]
[1719196304892,22.4925,128.04,127.97,0.17]
[1719196305108,22.4925,128.04,127.94,7.8158]
[1719196305316,22.4925,128.04,127.95,7.8154]
[1719196305699,22.4925,128.04,127.91,38.0644]
[1719196306024,22.4925,128.04,127.94,7.8158]
[1719196306396,20.0,128.03,127.95,0.17]
[1719196306931,20.0,128.03,127.94,0.34]
[1719196308517,20.0,128.03,127.93,7.8167]
[1719196308729,0.17,128.02,127.93,7.8167]
[1719196309714,0.17,128.02,127.94,0.17]
[1719196310025,0.17,128.02,127.91,26.3376]
[1719196310203,16.2973,128.01,127.92,7.8172]
[1719196310400,20.0,128.0,127.93,7.8167]
[1719196310810,20.0,128.0,127.92,7.8172]
[1719196311129,20.0,128.0,127.93,0.17]
[1719196311309,20.0,128.0,127.92,0.34]
[1719196311511,20.0,128.0,127.92,8.1573]
[1719196312595,20.0,128.0,127.93,7.8167]
[1719196312824,20.0,128.0,127.92,0.34]
[1719196312825,20.0,128.0,127.94,7.9857]
[1719196313123,20.0,128.0,127.92,8.1572]
[1719196313298,20.0,128.0,127.92,0.17]
[1719196313913,6.4707,127.99,127.92,7.9873]
[1719196314712,6.4707,127.99,127.88,100.0]
[1719196314899,20.0,127.98,127.89,20.0]
[1719196315129,16.3445,127.97,127.89,20.0]
[1719196315425,16.3445,127.97,127.88,20.0]
[1719196315723,16.3445,127.97,127.9,7.8183]
[1719196316028,16.3445,127.97,127.89,7.8191]
[1719196317109,16.3445,127.97,127.9,7.8185]
[1719196317509,6.1153,127.96,127.88,7.8194]
[1719196317830,15.9477,127.94,127.86,7.8205]
[1719196318330,15.9477,127.94,127.85,0.1]
[1719196318331,15.9477,127.94,127.85,7.9215]
[1719196318504,20.0,127.93,127.86,7.821]